fUSD/lending_fUSD_20240921
["ID","MTS","AMOUNT","RATE_DAILY","PERIOD"]
[338737353,1726903836751,-500.0,0.00012997,2]
[338737354,1726903836760,-500.0,0.00012997,2]
[338737355,1726903836770,-408.98,0.00012997,2]
[338737356,1726903836780,-602.67,0.00012997,2]
[338737357,1726903836789,-159.02,0.00012997,2]
[338737358,1726903836799,-500.0,0.00012997,2]
[338737359,1726903836808,-609.86,0.00012997,2]
[338737360,1726903836818,-500.0,0.00012997,2]
[338737361,1726903836827,-500.0,0.00012997,2]
[338737362,1726903836836,-500.0,0.00012997,2]
[338737363,1726903836846,-500.0,0.00012997,2]
[338737364,1726903836856,-500.0,0.00012997,2]
[338737365,1726903836865,-500.0,0.00012997,2]
[338737366,1726903836874,-500.0,0.00012997,2]
[338737367,1726903836883,-500.0,0.00012997,2]
[338737368,1726903836893,-500.0,0.00012997,2]
[338737369,1726903836902,-500.0,0.00012997,2]
[338737370,1726903836913,-210.8,0.00012997,2]
[338737371,1726903836922,-500.0,0.00012997,2]
[338737372,1726903836932,-500.0,0.00012997,2]
[338737373,1726903836944,-500.0,0.00012997,2]
[338737374,1726903836953,-511.3,0.00012997,2]
[338737375,1726903836962,-500.0,0.00012997,2]
[338737376,1726903836973,-500.0,0.00012997,2]
[338737377,1726903836982,-500.0,0.00012997,2]
[338737378,1726903836992,-500.0,0.00012997,2]
[338737379,1726903837001,-500.0,0.00012997,2]
[338737380,1726903837011,-500.0,0.00012997,2]
[338737381,1726903837020,-477.17,0.00012997,2]
[338737382,1726903837029,-500.0,0.00012997,2]
[338737383,1726903837038,-500.0,0.00012997,2]
[338737384,1726903837048,-613.3,0.00012997,2]
[338737385,1726903837057,-500.0,0.00012997,2]
[338737386,1726903837066,-500.0,0.00012997,2]
[338737387,1726903837075,-500.0,0.00012997,2]
[338737388,1726903837085,-500.0,0.00012997,2]
[338737389,1726903837094,-500.0,0.00012997,2]
[338737390,1726903837105,-500.0,0.00012997,2]
[338737391,1726903837114,-500.0,0.00012997,2]
[338737392,1726903837123,-500.0,0.00012997,2]
[338737393,1726903837133,-500.0,0.00012997,2]
[338737394,1726903837143,-500.0,0.00012997,2]
[338737395,1726903837152,-500.0,0.00012997,2]
[338737396,1726903837162,-500.0,0.00012997,2]
[338737397,1726903837172,-645.08,0.00012997,2]
[338737398,1726903837181,-500.0,0.00012997,2]
[338737399,1726903837191,-500.0,0.00012997,2]
[338737400,1726903837200,-500.0,0.00012997,2]
[338737401,1726903837210,-500.0,0.00012997,2]
[338737402,1726903837219,-500.0,0.00012997,2]
[338737403,1726903837229,-500.0,0.00012997,2]
[338737404,1726903837238,-500.0,0.00012997,2]
[338737405,1726903837248,-500.0,0.00012997,2]
[338737406,1726903837257,-500.0,0.00012997,2]
[338737407,1726903837267,-500.0,0.00012997,2]
[338737408,1726903837276,-500.0,0.00012997,2]
[338737409,1726903837285,-500.0,0.00012997,2]
[338737410,1726903837295,-500.0,0.00012997,2]
[338737411,1726903837304,-500.0,0.00012997,2]
[338737412,1726903837313,-500.0,0.00012997,2]
[338737413,1726903837322,-500.0,0.00012997,2]
[338737414,1726903837332,-500.0,0.00012997,2]
[338737415,1726903837342,-500.0,0.00012997,2]
[338737416,1726903837352,-500.0,0.00012997,2]
[338737417,1726903837362,-1025.84,0.00012997,2]
[338737418,1726903837372,-500.0,0.00012997,2]
[338737419,1726903837381,-500.0,0.00012997,2]
[338737420,1726903837390,-500.0,0.00012997,2]
[338737421,1726903837400,-500.0,0.00012997,2]
[338737422,1726903837409,-500.0,0.00012997,2]
[338737423,1726903837419,-500.0,0.00012997,2]
[338737424,1726903837428,-500.0,0.00012997,2]
[338737425,1726903837438,-500.0,0.00012997,2]
[338737426,1726903837448,-499.99,0.00012997,2]
[338737427,1726903837458,-196.23890814,0.00012999,2]
[338737428,1726903837469,-500.0,0.00012999,2]
[338737429,1726903837479,-500.0,0.00012999,2]
[338737430,1726903837489,-500.0,0.00012999,2]
[338737431,1726903837498,-500.0,0.00012999,2]
[338737432,1726903837508,-501.12003088,0.00012999,2]
[338737433,1726903837517,-500.0,0.00012999,2]
[338737434,1726903837526,-500.0,0.00012999,2]
[338737435,1726903837535,-500.0,0.00012999,2]
[338737436,1726903837545,-500.0,0.00012999,2]
[338737437,1726903837556,-450.0,0.00012999,2]
[338737438,1726903837566,-500.0,0.00012999,2]
[338737439,1726903837576,-391.8,0.00012999,2]
[338737440,1726903837587,-500.0,0.00012999,2]
[338737441,1726903837600,-500.0,0.00012999,2]
[338737442,1726903837609,-500.0,0.00012999,2]
[338737443,1726903837618,-500.0,0.00012999,2]
[338737444,1726903837628,-413.7,0.00012999,2]
[338737445,1726903837637,-500.0,0.00012999,2]
[338737446,1726903837647,-500.0,0.00012999,2]
[338737447,1726903837656,-220.92,0.00012999,2]
[338737448,1726903837666,-500.0,0.00012999,2]
[338737449,1726903837675,-500.0,0.00012999,2]
[338737450,1726903837684,-500.0,0.00012999,2]
[338737451,1726903837694,-500.0,0.00012999,2]
[338737453,1726903837703,-500.0,0.00012999,2]
[338737454,1726903837712,-500.0,0.00012999,2]
[338737455,1726903837722,-360.94,0.00012999,2]
[338737457,1726903837731,-500.0,0.00012999,2]
[338737458,1726903837741,-500.0,0.00012999,2]
[338737459,1726903837750,-500.0,0.00012999,2]
[338737460,1726903837760,-277.92,0.00012999,2]
[338737461,1726903837770,-558.01,0.00012999,2]
[338737462,1726903837780,-500.0,0.00012999,2]
[338737463,1726903837790,-500.0,0.00012999,2]
[338737464,1726903837799,-264.63,0.00012999,2]
[338737465,1726903837809,-261.62,0.00012999,2]
[338737466,1726903837818,-500.0,0.00012999,2]
[338737467,1726903837827,-613.75,0.00012999,2]
[338737468,1726903837837,-500.0,0.00012999,2]
[338737469,1726903837846,-500.0,0.00012999,2]
[338737470,1726903837856,-500.0,0.00012999,2]
[338737471,1726903837866,-406.68,0.00012999,2]
[338737472,1726903837875,-500.0,0.00012999,2]
[338737473,1726903837884,-500.0,0.00012999,2]
[338737474,1726903837894,-500.0,0.00012999,2]
[338737475,1726903837905,-500.0,0.00012999,2]
[338737476,1726903837917,-500.0,0.00012999,2]
[338737477,1726903837927,-500.0,0.00012999,2]
[338737478,1726903837938,-500.0,0.00012999,2]
[338737479,1726903837947,-500.0,0.00012999,2]
[338737480,1726903837957,-500.0,0.00012999,2]
[338737481,1726903838189,-500.0,0.00012999,2]
[338737482,1726903838226,-500.0,0.00012999,2]
[338737483,1726903838236,-500.0,0.00012999,2]
[338737484,1726903838245,-500.0,0.00012999,2]
[338737485,1726903838255,-500.0,0.00012999,2]
[338737486,1726903838264,-500.0,0.00012999,2]
[338737487,1726903838274,-500.0,0.00012999,2]
[338737488,1726903838283,-500.0,0.00012999,2]
[338737489,1726903838293,-500.0,0.00012999,2]
[338737490,1726903838302,-601.7,0.00012999,2]
[338737491,1726903838312,-32852.47278018,0.00013,2]
[338737594,1726903839509,-929.99995,0.00013,2]
[338737596,1726903839522,-57045.74794854,0.00013,2]
[338737598,1726903839531,-1010.1,0.00013,2]
[338737600,1726903839542,-405176.49465872,0.00013,2]
[338737603,1726903839554,-1415.43626018,0.00013,2]
[338737605,1726903839570,-2722.12504729,0.00013,2]
[338737608,1726903839582,-1230.01759857,0.00013,2]
[338737609,1726903839591,-2177.36342289,0.00013,2]
[338737612,1726903839603,-22253.86192698,0.00013,2]
[338737613,1726903839612,-1679.06194262,0.00013,2]
[338737617,1726903839640,1200.0,8.972e-05,2]
[338737632,1726903839765,1200.0,0.00010342,2]
[338737652,1726903839877,1200.0,0.00011712,2]
[338737666,1726903839988,-500.0,0.00012996,2]
[338737669,1726903839999,-212.43225591,0.00012996,2]
[338737671,1726903840011,-287.56774409,0.00012996,2]
[338737673,1726903840020,-500.0,0.00012996,2]
[338737675,1726903840029,-500.0,0.00012996,2]
[338737677,1726903840038,-500.0,0.00012996,2]
[338737679,1726903840048,-500.0,0.00012996,2]
[338737681,1726903840056,-460.15186116,0.00012999,2]
[338737695,1726903840183,-39.84813884,0.00012999,2]
[338737697,1726903840193,-544.76,0.00012999,2]
[338737699,1726903840203,-500.0,0.00012999,2]
[338737701,1726903840212,-500.0,0.00012999,2]
[338737703,1726903840221,-500.0,0.00012999,2]
[338737705,1726903840230,-464.9508612,0.00012999,2]
[338737708,1726903840246,-35.0491388,0.00012999,2]
[338737710,1726903840256,-500.0,0.00012999,2]
[338737712,1726903840265,-185.08,0.00012999,2]
[338737714,1726903840274,-500.0,0.00012999,2]
[338737716,1726903840283,-500.0,0.00012999,2]
[338737718,1726903840292,-500.0,0.00012999,2]
[338737720,1726903840301,-500.0,0.00012999,2]
[338737722,1726903840311,-500.0,0.00012999,2]
[338737724,1726903840320,-500.0,0.00012999,2]
[338737726,1726903840329,-500.0,0.00012999,2]
[338737728,1726903840338,-500.0,0.00012999,2]
[338737730,1726903840347,-500.0,0.00012999,2]
[338737732,1726903840357,-11521.25465333,0.00013,2]
[338737734,1726903840370,-4236.72490095,0.00013,2]
[338737738,1726903840385,-484.43905378,0.00013,2]
[338737740,1726903840396,-63547.24399521,0.00013,2]
[338737742,1726903840408,-2200.0,0.00013,2]
[338737745,1726903840423,-6157.08148719,0.00013,2]
[338737748,1726903840439,-500.0,0.00012999,2]
[338737750,1726903840448,-1105.98,0.00013,2]
[338737752,1726903840459,-1116.50326628,0.00013,2]
[338737762,1726903840544,-291.88343201,0.00012999,2]
[338737764,1726903840559,-208.11656799,0.00012999,2]
[338737766,1726903840568,-291.88343201,0.00012999,2]
[338737768,1726903840579,-208.11656799,0.00012999,2]
[338737770,1726903840588,-500.0,0.00012999,2]
[338737772,1726903840599,-500.0,0.00012999,2]
[338737774,1726903840610,-493.68,0.00012999,2]
[338737776,1726903840619,-500.0,0.00012999,2]
[338737778,1726903840628,-500.0,0.00012999,2]
[338737780,1726903840637,-500.0,0.00012999,2]
[338737782,1726903840646,-2517.7388846,0.00013,2]
[338737784,1726903840658,-462.7030002,0.00013,2]
[338737786,1726903840669,-4285.7862628,0.00013,2]
[338737789,1726903840690,-639.97,0.00012999,2]
[338737791,1726903840699,-4929.02582229,0.00013,2]
[338737793,1726903840709,-3470.18292958,0.00013,2]
[338737795,1726903840720,-374.07477111,0.00013,2]
[338737810,1726903840848,-18376.3507047,0.00013,2]
[338738002,1726903842939,-500.0,0.00012996,2]
[338738005,1726903842948,-379.178145,0.00012996,2]
[338738007,1726903842959,-120.821855,0.00012996,2]
[338738009,1726903842969,-500.0,0.00012996,2]
[338738011,1726903842978,-500.0,0.00012999,2]
[338738013,1726903842987,-312.94118878,0.00012999,2]
[338738021,1726903843059,-187.05881122,0.00012999,2]
[338738023,1726903843068,-500.0,0.00012999,2]
[338738025,1726903843078,-500.0,0.00012999,2]
[338738027,1726903843087,-500.0,0.00012999,2]
[338738029,1726903843096,-472.10049218,0.00012999,2]
[338738031,1726903843106,-568.25,0.00012999,2]
[338738033,1726903843115,-68212.5274282,0.00013,2]
[338738035,1726903843126,-401.47892665,0.00013,2]
[338738037,1726903843137,-508.350001,0.00013,2]
[338738039,1726903843148,-1217.50675063,0.00013,2]
[338738041,1726903843159,-1663375.23129234,0.00013,2]
[338738048,1726903843214,-1419907.91848382,0.00013,2]
[338738059,1726903843303,-2564.133,0.00013,2]
[338738297,1726903845861,-500.0,0.00012996,2]
[338738299,1726903845871,-500.0,0.00012996,2]
[338738302,1726903845881,-52.77619945,0.00012996,2]
[338738306,1726903845901,-530.47380055,0.00012996,2]
[338738308,1726903845911,-500.0,0.00012999,2]
[338738311,1726903845921,-500.0,0.00012999,2]
[338738314,1726903845931,-500.0,0.00012999,2]
[338738316,1726903845940,-500.0,0.00012999,2]
[338738319,1726903845949,-500.0,0.00012999,2]
[338738322,1726903845958,-948.80768431,0.00013,2]
[338738324,1726903845969,-20230.06674833,0.00013,2]
[338738337,1726903846041,-2210.23892131,0.00013,2]
[338738340,1726903846052,-433.9560001,0.00013,2]
[338738343,1726903846064,-285.56665977,0.00013,2]
[338738346,1726903846077,-1175.71999984,0.00013,2]
[338738354,1726903846112,-480.34,0.00013,2]
[338738601,1726903903223,335.35,0.00010671,2]
[338738602,1726903921909,1374.4368,0.0001196,2]
[338738613,1726904213828,1000.0,0.00010068,2]
[338738614,1726904215450,1000.0,0.00011438,2]
[338738616,1726904272347,250.0,0.00011612,2]
[338738617,1726904293374,1000.0,0.00011625,2]
[338738636,1726904445435,1074.43,0.00011607,2]
[338738637,1726904459791,-917.99,0.0001229,2]
[338738638,1726904459816,-82.01,0.00012293,2]
[338738639,1726904462457,-835.98,0.00012293,2]
[338738640,1726904462479,-164.02,0.00012296,2]
[338738641,1726904465632,-753.97,0.00012296,2]
[338738642,1726904465654,-246.03,0.000123,2]
[338738643,1726904468274,-671.96,0.000123,2]
[338738644,1726904468301,-328.04,0.00012303,2]
[338738645,1726904470464,-589.95,0.00012303,2]
[338738646,1726904470491,-410.05,0.00012306,2]
[338738647,1726904502321,318.58,9.774e-05,2]
[338738648,1726904502384,250.0,0.00011692,2]
[338738649,1726904534845,241.39,0.0001169,2]
[338738650,1726904657405,4427.63,0.00011752,2]
[338738660,1726904725296,222.66,0.00011644,2]
[338738664,1726904852146,250.0,0.00011665,2]
[338738665,1726904876944,200.0,0.00011659,2]
[338738666,1726904883247,311.58,0.00011659,2]
[338738668,1726904982996,150.0,0.00011625,2]
[338738670,1726905034380,-318.58,0.00012038,2]
[338738671,1726905034391,-35.8953,0.00012306,2]
[338738675,1726905038104,-472.0447,0.00012306,2]
[338738676,1726905038113,-917.99,0.00012309,2]
[338738677,1726905038122,-917.99,0.00012313,2]
[338738678,1726905038131,-917.99,0.00012316,2]
[338738679,1726905038140,-917.99,0.00012319,2]
[338738680,1726905038150,-917.99,0.00012322,2]
[338738681,1726905038159,-917.99,0.00012325,2]
[338738682,1726905038169,-917.99,0.00012329,2]
[338738683,1726905038179,-255.0,0.00012331,2]
[338738684,1726905038188,-1165.19,0.00012331,2]
[338738685,1726905038198,-247.57,0.00012331,2]
[338738686,1726905038208,-917.99,0.00012332,2]
[338738687,1726905038217,-917.99,0.00012335,2]
[338738688,1726905038227,-917.99,0.00012338,2]
[338738689,1726905038237,-917.99,0.00012342,2]
[338738690,1726905038248,-917.99,0.00012345,2]
[338738691,1726905038259,-917.99,0.00012348,2]
[338738692,1726905038269,-917.99,0.00012351,2]
[338738693,1726905038279,-372.47,0.00012476,2]
[338738694,1726905038290,-172.87,0.00012635,2]
[338738695,1726905038300,-410.8014595,0.00012719,2]
[338738696,1726905038310,-363.1959,0.00012793,2]
[338738697,1726905038321,-2326.4415,0.00012796,2]
[338738698,1726905038332,-2943.8121,0.00012796,2]
[338738699,1726905038343,-18731.2092,0.00012796,2]
[338738700,1726905038352,-2500.0,0.00012796,2]
[338738701,1726905038363,-1170.15,0.00012796,2]
[338738702,1726905038372,-354.4753,0.00012797,2]
[338738703,1726905038381,-1066.89,0.000128,2]
[338738704,1726905038391,-533.47,0.000128,2]
[338738705,1726905038400,-150.0,0.00012807,2]
[338738706,1726905038409,-1000.0,0.00012808,2]
[338738707,1726905038419,-31103.865,0.00012808,2]
[338738708,1726905038429,-510.36775229,0.00012878,2]
[338738709,1726905038438,-29999.99,0.00012893,2]
[338738710,1726905038448,-8712.01,0.00012893,2]
[338738711,1726905038458,-19999.99,0.00012893,2]
[338738712,1726905038467,-329.11819762,0.00012895,2]
[338738713,1726905038478,-5364.9738,0.00012896,2]
[338738714,1726905038488,-100000.0,0.00012896,2]
[338738715,1726905038498,-475.3993,0.00012896,2]
[338738716,1726905038508,-170.18,0.00012898,2]
[338738717,1726905038517,-529.44,0.00012899,2]
[338738718,1726905038527,-596.43,0.00012899,2]
[338738720,1726905038536,-500.0,0.00012899,2]
[338738721,1726905038546,-500.0,0.00012899,2]
[338738722,1726905038556,-158.56691584,0.000129,2]
[338738723,1726905038565,-171.7976515,0.000129,2]
[338738724,1726905038575,-160.74645545,0.000129,2]
[338738725,1726905038585,-533.47,0.000129,2]
[338738726,1726905038595,-422.78,0.000129,2]
[338738727,1726905038604,-1477.66,0.000129,2]
[338738728,1726905038613,-533.47,0.000129,2]
[338738729,1726905038623,-533.47,0.000129,2]
[338738730,1726905038632,-533.47,0.000129,2]
[338738731,1726905038642,-533.47,0.000129,2]
[338738732,1726905038651,-844.92,0.000129,2]
[338738733,1726905038660,-212.02,0.000129,2]
[338738734,1726905038669,-533.47,0.000129,2]
[338738735,1726905038678,-533.51,0.000129,2]
[338738736,1726905038687,-944.58,0.000129,2]
[338738738,1726905038696,-533.47,0.000129,2]
[338738740,1726905038706,-533.47,0.000129,2]
[338738741,1726905038716,-533.47,0.000129,2]
[338738743,1726905038726,-533.47,0.000129,2]
[338738745,1726905038735,-533.47,0.000129,2]
[338738747,1726905038745,-533.47,0.000129,2]
[338738749,1726905038755,-533.47,0.000129,2]
[338738751,1726905038764,-360.79865948,0.000129,2]
[338738753,1726905038772,-533.47,0.000129,2]
[338738755,1726905038782,-500.0,0.00012973,2]
[338738757,1726905038790,-152.08,0.00012985,2]
[338738759,1726905038799,-537.21,0.00012994,2]
[338738761,1726905038807,-533.47,0.00012994,2]
[338738763,1726905038817,-221068.88787791,0.00012994,2]
[338738765,1726905038828,-308.12,0.00012994,2]
[338738767,1726905038839,-818.57,0.00012995,2]
[338738769,1726905038848,-500.0,0.00012995,2]
[338738771,1726905038858,-500.0,0.00012995,2]
[338738773,1726905038868,-500.0,0.00012995,2]
[338738775,1726905038878,-571.22,0.00012995,2]
[338738777,1726905038887,-500.0,0.00012995,2]
[338738779,1726905038907,-500.0,0.00012995,2]
[338738781,1726905038917,-500.0,0.00012995,2]
[338738783,1726905038927,-500.0,0.00012995,2]
[338738785,1726905038936,-500.0,0.00012995,2]
[338738787,1726905038945,-500.0,0.00012995,2]
[338738789,1726905038954,-500.0,0.00012995,2]
[338738791,1726905038964,-500.0,0.00012995,2]
[338738793,1726905038973,-500.0,0.00012995,2]
[338738795,1726905038983,-500.0,0.00012995,2]
[338738797,1726905038992,-500.0,0.00012995,2]
[338738799,1726905039001,-500.0,0.00012995,2]
[338738801,1726905039010,-500.0,0.00012995,2]
[338738803,1726905039018,-500.0,0.00012995,2]
[338738804,1726905039027,-500.0,0.00012995,2]
[338738806,1726905039036,-500.0,0.00012995,2]
[338738808,1726905039044,-500.0,0.00012995,2]
[338738810,1726905039054,-500.0,0.00012995,2]
[338738812,1726905039063,-500.0,0.00012995,2]
[338738814,1726905039072,-500.0,0.00012995,2]
[338738816,1726905039082,-500.0,0.00012995,2]
[338738818,1726905039100,-500.0,0.00012995,2]
[338738820,1726905039110,-500.0,0.00012995,2]
[338738822,1726905039120,-500.0,0.00012995,2]
[338738824,1726905039130,-500.0,0.00012995,2]
[338738826,1726905039141,-500.0,0.00012995,2]
[338738828,1726905039150,-500.0,0.00012995,2]
[338738830,1726905039160,-486.55036777,0.00012995,3]
[338738832,1726905039169,-521.92,0.00012995,2]
[338738834,1726905039179,-500.0,0.00012995,2]
[338738836,1726905039189,-500.0,0.00012995,2]
[338738838,1726905039199,-500.0,0.00012995,2]
[338738840,1726905039209,-500.0,0.00012995,2]
[338738842,1726905039218,-500.0,0.00012995,2]
[338738844,1726905039228,-500.0,0.00012995,2]
[338738846,1726905039237,-500.0,0.00012995,2]
[338738848,1726905039247,-500.0,0.00012995,2]
[338738850,1726905039257,-500.0,0.00012995,2]
[338738851,1726905039266,-500.0,0.00012995,2]
[338738853,1726905039275,-500.0,0.00012995,2]
[338738855,1726905039285,-500.0,0.00012995,2]
[338738857,1726905039294,-500.0,0.00012995,2]
[338738859,1726905039303,-500.0,0.00012995,2]
[338738861,1726905039313,-500.0,0.00012995,2]
[338738863,1726905039323,-500.0,0.00012995,2]
[338738865,1726905039332,-500.0,0.00012995,2]
[338738867,1726905039342,-500.0,0.00012995,2]
[338738869,1726905039351,-500.0,0.00012995,2]
[338738871,1726905039361,-500.0,0.00012995,2]
[338738873,1726905039371,-500.0,0.00012995,2]
[338738875,1726905039380,-434.26338515,0.00012995,2]
[338738877,1726905039391,-500.0,0.00012995,2]
[338738879,1726905039401,-638.90454871,0.00012995,2]
[338738881,1726905039411,-500.0,0.00012995,2]
[338738883,1726905039420,-500.0,0.00012995,2]
[338738885,1726905039430,-500.0,0.00012995,2]
[338738887,1726905039440,-500.0,0.00012995,2]
[338738889,1726905039449,-500.0,0.00012995,2]
[338738891,1726905039459,-500.0,0.00012995,2]
[338738893,1726905039468,-500.0,0.00012995,2]
[338738895,1726905039478,-500.0,0.00012995,2]
[338738897,1726905039487,-500.0,0.00012995,2]
[338738899,1726905039496,-500.0,0.00012995,2]
[338738901,1726905039506,-500.0,0.00012995,2]
[338738903,1726905039515,-500.0,0.00012995,2]
[338738905,1726905039524,-500.0,0.00012995,2]
[338738907,1726905039534,-500.0,0.00012995,2]
[338738909,1726905039543,-500.0,0.00012995,2]
[338738911,1726905039552,-500.0,0.00012995,2]
[338738913,1726905039562,-500.0,0.00012995,2]
[338738915,1726905039572,-500.0,0.00012995,2]
[338738917,1726905039582,-500.0,0.00012995,2]
[338738919,1726905039592,-500.0,0.00012995,2]
[338738921,1726905039601,-500.0,0.00012995,2]
[338738923,1726905039612,-500.0,0.00012995,2]
[338738925,1726905039621,-500.0,0.00012995,2]
[338738927,1726905039631,-500.0,0.00012995,2]
[338738929,1726905039640,-500.0,0.00012995,2]
[338738930,1726905039649,-500.0,0.00012995,2]
[338738932,1726905039659,-500.0,0.00012995,2]
[338738934,1726905039668,-500.0,0.00012995,2]
[338738936,1726905039678,-500.0,0.00012995,2]
[338738939,1726905039687,-500.0,0.00012995,2]
[338738940,1726905039697,-500.0,0.00012995,2]
[338738943,1726905039707,-642.18978749,0.00012995,2]
[338738945,1726905039717,-500.0,0.00012995,2]
[338738947,1726905039727,-500.0,0.00012995,2]
[338738949,1726905039736,-500.0,0.00012995,2]
[338738951,1726905039745,-500.0,0.00012995,2]
[338738953,1726905039755,-500.0,0.00012995,2]
[338738955,1726905039764,-500.0,0.00012995,2]
[338738957,1726905039774,-500.0,0.00012995,2]
[338738959,1726905039786,-500.0,0.00012995,2]
[338738961,1726905039798,-500.0,0.00012995,2]
[338738963,1726905039807,-500.0,0.00012995,2]
[338738966,1726905039817,-500.0,0.00012995,2]
[338738969,1726905039828,-500.0,0.00012995,2]
[338738971,1726905039838,-500.0,0.00012995,2]
[338738973,1726905039847,-500.0,0.00012995,2]
[338738975,1726905039858,-332.83179084,0.00012995,2]
[338738977,1726905039867,-500.0,0.00012995,2]
[338738979,1726905039877,-500.0,0.00012995,2]
[338738982,1726905039889,-500.0,0.00012995,2]
[338738984,1726905039899,-500.0,0.00012995,2]
[338738985,1726905039908,-500.0,0.00012995,2]
[338738987,1726905039918,-216.09865157,0.00012995,2]
[338738989,1726905039929,-500.0,0.00012996,2]
[338738992,1726905039941,-500.0,0.00012996,2]
[338738995,1726905039952,-500.0,0.00012996,2]
[338738997,1726905039963,-500.0,0.00012996,2]
[338738999,1726905039975,-500.0,0.00012996,2]
[338739001,1726905039986,-500.0,0.00012996,2]
[338739003,1726905039996,-500.0,0.00012996,2]
[338739005,1726905040006,-500.0,0.00012996,2]
[338739007,1726905040017,-500.0,0.00012996,2]
[338739009,1726905040028,-500.0,0.00012996,2]
[338739011,1726905040038,-500.0,0.00012996,2]
[338739013,1726905040049,-500.0,0.00012996,2]
[338739015,1726905040060,-500.0,0.00012996,2]
[338739017,1726905040070,-500.0,0.00012996,2]
[338739019,1726905040082,-500.0,0.00012996,2]
[338739022,1726905040097,-500.0,0.00012996,2]
[338739024,1726905040107,-500.0,0.00012996,2]
[338739026,1726905040116,-500.0,0.00012996,2]
[338739028,1726905040126,-500.0,0.00012996,2]
[338739030,1726905040138,-500.0,0.00012996,2]
[338739032,1726905040148,-500.0,0.00012996,2]
[338739034,1726905040157,-500.0,0.00012996,2]
[338739036,1726905040168,-500.0,0.00012996,2]
[338739038,1726905040179,-392.46761696,0.00012996,2]
[338739040,1726905040188,-500.0,0.00012996,2]
[338739042,1726905040199,-500.0,0.00012996,2]
[338739044,1726905040208,-500.0,0.00012996,2]
[338739046,1726905040219,-496.52538181,0.00012996,2]
[338739048,1726905040229,-500.0,0.00012996,2]
[338739050,1726905040239,-500.0,0.00012996,2]
[338739052,1726905040249,-500.0,0.00012996,2]
[338739054,1726905040260,-500.0,0.00012996,2]
[338739056,1726905040269,-500.0,0.00012996,2]
[338739058,1726905040279,-500.0,0.00012996,2]
[338739060,1726905040289,-500.0,0.00012996,2]
[338739062,1726905040300,-500.0,0.00012996,2]
[338739064,1726905040309,-500.0,0.00012996,2]
[338739066,1726905040319,-500.0,0.00012996,2]
[338739068,1726905040328,-500.0,0.00012996,2]
[338739070,1726905040338,-500.0,0.00012996,2]
[338739072,1726905040350,-500.0,0.00012996,2]
[338739073,1726905040360,-500.0,0.00012996,2]
[338739075,1726905040370,-500.0,0.00012996,2]
[338739078,1726905040382,-500.0,0.00012996,2]
[338739080,1726905040392,-302.32560872,0.00012996,2]
[338739082,1726905040403,-500.0,0.00012996,2]
[338739084,1726905040413,-500.0,0.00012996,2]